Cogmind - Beta 9.6 @@@ ROGUE MODE // 2020.05.05 @ 23:15:17 // AFD2020/Player2 Player: may2ever Result: Core destroyed Performance ------------- Evolutions (0) 0 Regions Visited (1) 200 Robots Destroyed (5) 25 Value Destroyed (135) 135 Prototype IDs (0) 0 Alien Tech Used (0) 0 Bonus (6) 6 TOTAL SCORE: 366 Bonus ------- Follower Combat Kills 75 Friendly Fire -69 Cogmind --------- Core Integrity 0/250 Matter 282/300 Energy 250/250 System Corruption 3% Temperature Cool (0) Movement Core (200) Ox3 Location -10/Materials Parts ------- > --- POWER (1) -------- Ion Engine > --- PROPULSION (2) --- (None) > --- UTILITY (2) ------ Small Storage Unit Core Shielding > --- WEAPON (2) ------- (None) > --- INVENTORY (6) ---- Ion Engine Ion Engine Light Treads Light Treads Wheel Compact Wheel Peak State ------------ > --- POWER ------------ Ion Engine > --- PROPULSION ------- Aluminum Leg Aluminum Leg > --- UTILITY ---------- Small Storage Unit > --- WEAPON ----------- Small Laser Assault Rifle > --- INVENTORY -------- Ion Engine Light Treads Light Treads Wheel Compact Wheel Medium Laser [Rating: 6] Favorites ----------- Power Ion Engine Engine Ion Engine Propulsion Aluminum Leg Leg Aluminum Leg Utility Small Storage Unit Storage Small Storage Unit Protection Core Shielding Weapon Assault Rifle Energy Gun Small Laser Ballistic Gun Assault Rifle Build | -11 -10 ------- Run | Scr Mat Slots Evolved . | . . Power . | . . Propulsion . | . . Utility . | . . Weapon . | . . Parts Attached 6 | . 6 Power 3 | . 3 Engine 3 | . 3 Core . | . . Reactor . | . . Propulsion 1 | . 1 Treads . | . . Leg 1 | . 1 Wheel . | . . Hover . | . . Flight . | . . Utility 1 | . 1 Device . | . . Storage . | . . Processor . | . . Hackware . | . . Protection 1 | . 1 Artifact . | . . Weapon 1 | . 1 Energy Gun 1 | . 1 Energy Cannon . | . . Ballistic Gun . | . . Ballistic Cannon . | . . Launcher . | . . Special Weapon . | . . Impact Weapon . | . . Slashing Weapon . | . . Piercing Weapon . | . . Special Melee Weapon . | . . Unidentified Prototypes . | . . Parts Lost 7 | . 7 Power 1 | . 1 Propulsion 3 | . 3 Utility . | . . Weapon 3 | . 3 Highest Loss Streak 7 | . 7 Average Slot Usage (%) 58 | . 58 Engine 12 | . 12 Leg 14 | . 14 Storage 14 | . 14 Protection 3 | . 3 Energy Gun 6 | . 6 Ballistic Gun 7 | . 7 Naked Turns . | . . Heaviest Build 13 | 12 13 Greatest Support 20 | 20 20 Greatest Overweight (x) 3 | . 3 Average Overweight (x) 1 | . 1 Largest Inventory Capacity 6 | . 6 Average Capacity 6 | . 6 Most Carried 6 | . 6 Average Carried 5 | . 5 Final Capacity 6 | 6 6 Final Carried 6 | 6 6 Class Distribution -------------------- 100% | Mutant Dominant Class ---------------- Mutant | -10/Materials Resources | -11 -10 ----------- Run | Scr Mat Matter Collected 303 | 162 141 Remotely . | . . Salvage Created 168 | . 168 Parts 13 | . 13 Haulers Intercepted . | . . Recyclers Shooed 1 | . 1 Parts Field Recycled . | . . Retrieved Matter . | . . Parts Self-Destructed . | . . Prevented . | . . Kills | -11 -10 ------- Run | Scr Mat Combat Hostiles Destroyed 5 | . 5 Melee 1 | . 1 Guns 4 | . 4 Classes Destroyed 2 | . 2 Swarmer 2 | . 2 Grunt 3 | . 3 Best Kill Streak 2 | . 2 Combat Bots Only 2 | . 2 Max Kills in Single Turn 1 | . 1 Gunslinging . | . . Exploded . | . . Melee 1 | . 1 Uniques/NPCs Destroyed . | . . Combat | -11 -10 -------- Run | Scr Mat Damage Taken 629 | . 629 Core 86 | . 86 Absorbed by Shields . | . . Core Remaining (%) 100 | 100 . Volleys Fired 26 | . 26 Largest 2 | . 2 Hottest 70 | . 70 Shots Fired 46 | . 46 Gun 46 | . 46 Cannon . | . . Launcher . | . . Special . | . . Kinetic 26 | . 26 Thermal 20 | . 20 Explosive . | . . Electromagnetic . | . . Robot Hit Streak 6 | . 6 Robot Miss Streak 4 | . 4 Penetration Max . | . . Secondary Targets 1 | . 1 Max Gunslinging Chain 1 | . 1 Shots Hit Robots 29 | . 29 Core Hits 16 | . 16 Critical Hits 1 | . 1 Critical Kills . | . . Critical Parts Destroyed 1 | . 1 Melee Attacks . | . . Impact . | . . Slashing . | . . Piercing . | . . Sneak Attacks . | . . Combat Hostiles . | . . Follow-up Attacks . | . . Damage Inflicted 383 | . 383 Guns 366 | . 366 Cannons . | . . Explosions . | . . Melee . | . . Ramming 17 | . 17 Kinetic 186 | . 186 Thermal 180 | . 180 Explosive . | . . Electromagnetic . | . . Impact . | . . Slashing . | . . Piercing . | . . Highest Corruption 3 | . 3 Average Corruption 2 | . 2 Corruption Purged . | . . Effects 2 | . 2 Message Errors 1 | . 1 Matter Fused 1 | . 1 Overload Shots . | . . Overflow Damage . | . . Projectiles . | . . Explosions . | . . Melee . | . . Knockbacks . | . . Impact . | . . Kinetic . | . . Secondary . | . . Self-Inflicted Damage 5 | . 5 Shots . | . . Rammed 16 | . 16 Targets Rammed 17 | . 17 Kicked 1 | . 1 Crushed . | . . Highest Temperature 66 | . 66 Average Temperature 25 | . 25 Received Heat Transfer 207 | . 207 Siege Activations . | . . Robots Corrupted . | . . Combat Hostiles . | . . Parts Fried . | . . Impact Corruptions . | . . Robots Melted . | . . Combat Hostiles . | . . Parts Melted . | . . Heat Transferred 452 | . 452 Parts Sabotaged . | . . Parts Stolen . | . . Parts Stripped . | . . Power Chain Reactions . | . . Missiles Intercepted . | . . Alert | -11 -10 ------- Run | Scr Mat Peak Influence 199 | . 199 Average Influence 101 | . 101 Maximum Alert Level . | . . Low Security (%) 100 | . 100 Level 1 . | . . Level 2 . | . . Level 3 . | . . Level 4 . | . . Level 5 . | . . High Security . | . . Max Security . | . . Squads Dispatched 2 | . 2 Investigation 1 | . 1 Extermination . | . . Reinforcement 1 | . 1 Assault . | . . Garrison . | . . Intercept . | . . Construction Impeded . | . . Haulers Reinforced . | . . Stealth | -11 -10 --------- Run | Scr Mat Distress Signals 1 | . 1 Communications Jammed . | . . Distress Signals . | . . Times Spotted 16 | . 16 Peak Tracking Total 5 | . 5 Tactical Retreats 1 | . 1 Traps | -11 -10 ------- Run | Scr Mat Traps Triggered . | . . Indirectly . | . . Trap Hack Attempts . | . . Triggered . | . . Disarmed . | . . Reprogrammed . | . . Reused . | . . Traps Extracted . | . . Installed . | . . Triggered . | . . Machines | -11 -10 ---------- Run | Scr Mat Machines Disabled . | . . Max in Single Turn . | . . Machines Sabotaged . | . . Garrisons Compromised . | . . Overloaded Fab Kills . | . . Fab Network Shutdowns . | . . Hacking | -11 -10 --------- Run | Scr Mat Machines Accessed . | . . Terminals . | . . Fabricators . | . . Repair Stations . | . . Recycling Units . | . . Scanalyzers . | . . Garrison Access . | . . Total Hacks . | . . Successful . | . . Failed . | . . Catastrophic . | . . Database Lockouts . | . . Manual . | . . Terminals . | . . Fabricators . | . . Repair Stations . | . . Recycling Units . | . . Scanalyzers . | . . Garrison Access . | . . Terminal Hacks . | . . Fabricator Hacks . | . . Repair Station Hacks . | . . Recycling Unit Hacks . | . . Scanalyzer . | . . Garrison Access Hacks . | . . Unauthorized Hacks . | . . Terminals . | . . Fabricators . | . . Repair Stations . | . . Recycling Units . | . . Scanalyzers . | . . Garrison Access . | . . Data Cores Recovered . | . . Used . | . . Hacking Detections . | . . Full Trace Events . | . . Feedback Events . | . . Feedback Blocked . | . . Robot Schematics Acquired . | . . Robots Built . | . . Matter . | . . Time . | . . Total Robot Build Rating . | . . Part Schematics Acquired . | . . Parts Built . | . . Matter . | . . Time . | . . Total Part Build Rating . | . . Parts Repaired . | . . Time . | . . Parts Recycled . | . . Recycled Matter . | . . Retrieved Matter . | . . Retrieved Components . | . . Parts Scanalyzed . | . . Part Schematics Acquired . | . . Parts Damaged . | . . Bothacking | -11 -10 ------------ Run | Scr Mat Used RIF Installer . | . . Robots Hacked . | . . Non-combat . | . . Combat . | . . Robot Hacks Applied . | . . Relay Couplers Released . | . . Robots Rewired . | . . Allies Hacked . | . . Hacks Repelled . | . . Allies | -11 -10 -------- Run | Scr Mat Total Allies 1 | . 1 Largest Group 1 | . 1 Highest-Rated Group 56 | . 56 Highest-Rated Ally 56 | . 56 Total Orders . | . . Ally Attacks 19 | . 19 Total Damage 153 | . 153 Kills 4 | . 4 Allies Corrupted . | . . Allies Melted . | . . Intel | -11 -10 ------- Run | Scr Mat Robot Analysis Total . | . . Derelict Logs Recovered . | . . Drone Launches . | . . Drone Recoveries . | . . Exploration | -11 -10 ------------- Run | Scr Mat Turns Passed 423 | . 423 Spaces Moved 210 | 1 209 Core 92 | . 92 Treads . | . . Legs 118 | 1 117 Wheels . | . . Hover . | . . Flight . | . . Fastest Speed 100 | 120 100 Average Speed 141 | 120 141 Slowest Speed 200 | 120 200 Overloaded Moves . | . . Propulsion Burnouts . | . . Robots Hopped . | . . Cave-ins Triggered . | . . Exploration Rate (%) 23 | 2 44 Regions Visited 1 Branch Regions . Pre-discovered Areas . | . . Known Exits Taken . | . . Unknown Exits Taken 1 | 1 . Scrap Searched . | . . Spaces Dug . | . . Terrain Destroyed . | . . Melee . | . . Projectile . | . . AOE . | . . Actions | -11 -10 --------- Run | Scr Mat Total 285 | . 285 Wait 26 | . 26 Move 209 | . 209 Hop . | . . Pick Up . | . . Fast Attach 3 | . 3 Attach 1 | . 1 Detach . | . . Swap 2 | . 2 Drop 1 | . 1 Fire 26 | . 26 Melee . | . . Ram 7 | . 7 Kick 10 | . 10 Crush . | . . Escape Stasis . | . . Rewire . | . . Trap . | . . Miscellaneous . | . . Route ------- -11/Scrapyard -10/Materials History --------- Turn | Location | Event 1 | -11/Scrapyard | Discovered new exit (range 0) 1 | -11/Scrapyard | Entered Materials 227 | -10/Materials | Core integrity fell below 50% 244 | -10/Materials | Core integrity fell below 20% 276 | -10/Materials | Lost 7 parts (1p3n3w) 321 | -10/Materials | Build established: Mutant 424 | -10/Materials | Core destroyed Last Messages --------------- 00280_ Acquired Lgt. Ion Engine. 00281_ Acquired 10 matter. 00282_ K-01 Serf collects debris. 00284_ Player 2 attaches Heat Sink. 00284_ K-01 Serf collects debris. 00289_ Acquired 10 matter. 00290_ R-06 Scavenger collects Sml. Laser. 00291_ K-01 Serf collects debris. 00294_ R-06 Scavenger collects Flight Unit. 00294_ K-01 Serf cleans the Recycling Unit. 00299_ R-06 Scavenger inserts Aluminum Leg into recycling unit. 00299_ K-01 Serf collects debris. 00300_ Dropped Lgt. Ion Engine. 00302_ R-06 Scavenger inserts Heat Sink into recycling unit. 00314_ R-06 Scavenger collects Ion Engine. 00327_ Acquired Core Shielding. 00329_ Player 2 attaches Core Shielding. 00384_ 0TW1/9NGDBCRY FFRK4WT9YC#XZBWDF7/K 00401_ Slammed into W-16 Scout. 00421_ W-16 Scout sends out distress signal. Map ----- +----------------------------------------------------+ | ?????????????????????????????????????????????????? | | ?????????????????????????????????????????????????? | | ?????????????????????????????????????????????????? | | ?????????????????????????????????????????????????? | | ?????????????????????????????????????????????????? | | ?????????????????????????????????????????????????? | | ?????????????????????????????????????????????????? | | ?????????????????????????????????????????????????? | | ?????????????????????????????????????????????????? | | ?????????????????????????????????????????????????? | | ?????????????????????????????????????????????????? | | ?????????????????????????????????????????????????? | | ?????????????????????????????????????????????????? | | ?????????????????????????????????????????????????? | | ???????????????#############?????????????????????? | | ???????????????# #?????????????????????? | | ???????????????# #?????????????????????? | | ???????????????# #?????????????????????? | | ?????????####### #?????????????????????? | | # ?????# # ???????????????????????? | | # ?????# """ # ?????????????????????????? | | # ?????# """ #? ???????????????????????????? | | # ?????# """ ####+########## +???????????????? | | # ?????# # t #????????????????? | | # ?????# """ + ####+###???????????????? | | # ###### """ # @# #???????????????? | | # # """ # ###### a #???????????????? | | # + # #????#@ #""" #???????????????? | | # """ # # #????# #""" #???????????????? | | # """ # # #????# #?"" #???????????????? | | # """ # "T" # #????# #?? #???????????????? | | # """ ####### #????# #???#??#???????????????? | | # #?????# ?????# #??????????????????????? | | # #??????+?????# #??????????????????????? | | # """ #????????????# s#??????????????????????? | | # """ #????????????# s#??????????????????????? | | # """ #????????????# #??????????????????????? | | # """ #??"????????? ??????????????????????? | | # #? ?????????? ??????????????????????? | | # #? ?????????? Ts ??????????????????????? | | # ??????????? ??????????????????????? | | +????????#??? ?% ??????????????????????? | | * #??????? #??????????????????????????????? | | ## * ###+####+##?????????????????????????????? | | ?# * #?????????????????????????????? | | ?# % #?????????????????????????????? | | ?# "" ##????????????????????????????? | | ?####+### "Y "#????????????????????????????? | | ??# % # "" T#????????????????????????????? | | ??#=""" # "#????????????????????????????? | +----------------------------------------------------+ Best States ------------- Heat Dissipation 25 Energy Generation 10 Energy Capacity 250 Matter Stores 300 Matter Capacity 300 Sight Range 16 Terrain Scan Density 10 Core Shielding 20 Evasion (%) 40 Item Schematics ----------------- None Robot Schematics ------------------ None Fabricated ------------ Nothing Alien Tech Used ----------------- None Achievements -------------- None Challenges ------------ None Player 2 | -11 -10 ---------- Run | Scr Mat Slots Evolved . | . . Power . | . . Propulsion . | . . Utility . | . . Weapon . | . . Parts Attached 14 | . 14 Parts Lost 3 | . 3 Damage Taken 388 | . 388 Core 165 | . 165 Player 2/Cogmind (%) 65 | . 65 Absorbed by Shields . | . . Damage Inflicted 153 | . 153 Player 2/Cogmind (%) 28 | . 28 Combat Hostiles Destroyed 3 | . 3 Player 2/Cogmind (%) 37 | . 37 Game ------ Seed TransportEnergyReactor Manual? 0 Play Time 00:05:00 Cumulative 162.6 hours Start 2020.05.05 @ 23:12:43 End 2020.05.05 @ 23:15:17 Sessions 1 Manual Loads 0 Difficulty Rogue Special Mode AFD2020/Player2 Game No. 193 Rogue 153 Adventurer 29 Explorer 11 Win Type - Total 3 Types 2/0/1/0/0/0/0 Lore% 62 Gallery% 82 Achievement% 40 Wizard Run 0 Options --------- ASCII 0 Keyboard 0 Movement Numpad Keybinds 0 Fullscreen 1 Font 18/SmallcapsGlow Map View 76x50 Tactical HUD 1 Map Filters NONE Filters NONE Steam 1 RUN: d463ebde-51d9-4972-94e2-df104ab95a92